[Event "Polish Youth 1st League 2022"]
[Site "Lublin"]
[Date "2022.07.03"]
[Round "9.17"]
[White "Kroliczek, Gabriela"]
[Black "Barwinska, Ewa"]
[Result "0-1"]
[ECO "B52"]
[WhiteElo "1934"]
[BlackElo "1825"]
[Annotator "NA RC"]
[PlyCount "108"]
[EventDate "2022.06.24"]
[EventType "team-tourn"]
[EventCountry "POL"]
[SourceTitle "playchess.com"]
[Source "ChessBase"]
[SourceQuality "1"]
[TimeControl "40/5400+30:1800+30"]

1. e4 {[%emt 0:00:02]} c5 {[%emt 0:00:07]} 2. Nf3 {[%emt 0:00:07]} d6 {[%emt 0:00:09]} 3. Bb5+ {[%emt 0:00:05]} Bd7 {[%emt 0:00:10]} 4. Bxd7+ {[%emt 0:00:30]} Nxd7 {[%emt 0:00:15]} 5. d4 {[%emt 0:03:33]} cxd4 {[%emt 0:02:54]} 6. Qxd4 {[%emt 0:00:07]} Ngf6 {[%emt 0:03:34]} 7. c4 {[%emt 0:01:31]} g6 {[%emt 0:06:56]} 8. Nc3 {[%emt 0:00:39]} Bg7 {[%emt 0:01:26]} 9. O-O {[%emt 0:05:10]} O-O {[%emt 0:00:51]} 10. Qd3 {[%emt 0:10:24]} Rc8 {[%emt 0:03:40]} 11. Bd2 {[%emt 0:01:50]} Ng4 {[%emt 0:13:30]} 12. b3 {[%emt 0:02:01]} Nge5 {[%emt 0:01:10]} 13. Nxe5 {[%emt 0:03:16]} Nxe5 {[%emt 0:00:22]} 14. Qe2 {[%emt 0:03:04]} Nc6 $14 {[%emt 0:06:30]} 15. Rac1 {[%emt 0:00:44]} a6 {[%emt 0:01:58]} 16. Rfd1 {[%emt 0:05:24]} Qa5 {[%emt 0:05:49]} 17. Be1 {[%emt 0:04:02]} Qg5 {[%emt 0:08:07]} 18. Nd5 {[%emt 0:30:30]} e6 {[%emt 0:02:20]} 19. Nc3 {[%emt 0:02:57]} Rfd8 {[%emt 0:02:22]} 20. Bd2 {[%emt 0:05:02]} Qh4 {[%emt 0:10:40]} 21. g3 {[%emt 0:00:22]} Qh3 {[%emt 0:01:30]} 22. Be3 {[%emt 0:02:38]} Bh6 {[%emt 0:08:02]} 23. Bxh6 {[%emt 0:11:58]} Qxh6 {[%emt 0:00:05]} 24. Kg2 {[%emt 0:00:02]} Qg5 {[%emt 0:01:35]} 25. Rd2 {[%emt 0:03:26]} Qa5 {[%emt 0:05:09]} 26. a4 {[%emt 0:01:13]} Qb4 {[%emt 0:02:31]} 27. Qd1 {[%emt 0:00:02]} Na5 {[%emt 0:00:57]} 28. Rb2 {[%emt 0:02:52]} Nxc4 {[%emt 0:02:59]} 29. Re2 {[%emt 0:00:36]} Na5 {[%emt 0:01:07]} 30. Re3 {[%emt 0:00:14]} Qxb3 {[%emt 0:01:49]} 31. Qe1 {[%emt 0:00:54]} Qb6 {[%emt 0:01:07]} 32. Rb1 {[%emt 0:00:22]} Qc5 {[%emt 0:00:43]} 33. Ne2 {[%emt 0:00:15]} Nc4 {[%emt 0:01:01]} 34. Reb3 {[%emt 0:00:46]} b6 {[%emt 0:00:54]} 35. h4 {[%emt 0:00:26]} d5 {[%emt 0:01:28]} 36. Nf4 {[%emt 0:00:54]} dxe4 {[%emt 0:00:27]} 37. Rc3 {[%emt 0:00:29]} e5 {[%emt 0:01:07]} 38. Nh3 {[%emt 0:00:13]} Qd5 {[%emt 0:00:44]} 39. Kg1 {[%emt 0:00:33]} Nd2 {[%emt 0:01:04]} 40. Rbc1 {[%emt 0:00:00]} Rxc3 {[%emt 0:00:00]} 41. Rxc3 {[%emt 0:00:29]} Nf3+ {[%emt 0:00:20]} 42. Rxf3 {[%emt 0:00:01]} exf3 {[%emt 0:00:07]} 43. Qe3 {[%emt 0:00:22]} b5 {[%emt 0:02:08]} 44. axb5 {[%emt 0:00:27]} axb5 {[%emt 0:00:05]} 45. Kh2 {[%emt 0:00:02]} Qd3 {[%emt 0:03:38]} 46. Qxe5 {[%emt 0:02:25]} Qf1 {[%emt 0:01:17]} 47. Nf4 {[%emt 0:00:02]} Qxf2+ {[%emt 0:00:11]} 48. Kh3 {[%emt 0:00:02]} Qf1+ {[%emt 0:05:20]} 49. Kg4 {[%emt 0:00:02]} Qd1 {[%emt 0:01:50]} 50. Kg5 {[%emt 0:04:15]} f2 {[%emt 0:01:59]} 51. Kh6 {[%emt 0:00:04]} Qd4 {[%emt 0:00:18]} 52. Qxb5 {[%emt 0:00:02]} Qg7+ {[%emt 0:00:28]} 53. Kg5 {[%emt 0:00:04]} f6+ {[%emt 0:00:11]} 54. Kg4 {[%emt 0:00:02]} Qd7+ {[%emt 0:00:07]} 0-1

[Event "Polish Youth 1st League 2022"]
[Site "Lublin"]
[Date "2022.07.03"]
[Round "9.18"]
[White "Matuszewska, Kinga"]
[Black "Seemann, Pola"]
[Result "0-1"]
[ECO "C45"]
[WhiteElo "1085"]
[BlackElo "1777"]
[Annotator "NA RC"]
[PlyCount "88"]
[EventDate "2022.06.24"]
[EventType "team-tourn"]
[EventCountry "POL"]
[SourceTitle "playchess.com"]
[Source "ChessBase"]
[SourceQuality "1"]
[TimeControl "40/5400+30:1800+30"]

1. e4 {[%emt 0:00:01]} e5 {[%emt 0:00:05]} 2. Nf3 {[%emt 0:00:04]} Nc6 {[%emt 0:00:04]} 3. d4 {[%emt 0:00:08]} exd4 {[%emt 0:00:04]} 4. Nxd4 {[%emt 0:00:07]} Nf6 {[%emt 0:00:19]} 5. Nxc6 {[%emt 0:00:12]} bxc6 {[%emt 0:00:08]} 6. Nd2 {[%emt 0:00:18]} a5 {[%emt 0:01:31]} 7. Bd3 {[%emt 0:06:55]} Bc5 {[%emt 0:03:00]} 8. O-O {[%emt 0:05:39]} d6 {[%emt 0:01:09]} 9. h3 {[%emt 0:01:56]} O-O {[%emt 0:01:40]} 10. Kh1 {[%emt 0:04:30]} Re8 {[%emt 0:16:51]} 11. f4 {[%emt 0:14:17]} Bb7 {[%emt 0:07:04]} 12. Qf3 {[%emt 0:10:21]} Ba7 {[%emt 0:06:01]} 13. Qg3 {[%emt 0:04:00]} Qe7 {[%emt 0:04:19]} 14. Re1 {[%emt 0:10:12]} Nh5 {[%emt 0:11:10]} 15. Qg4 {[%emt 0:11:12]} g6 {[%emt 0:01:10]} 16. Nf1 {[%emt 0:08:28]} c5 {[%emt 0:05:34]} 17. Be3 {[%emt 0:04:12]} Nf6 {[%emt 0:02:23]} 18. Qg5 {[%emt 0:04:20]} Nxe4 {[%emt 0:00:50]} 19. Qxe7 {[%emt 0:00:07]} Rxe7 {[%emt 0:00:07]} 20. Bg1 {[%emt 0:01:44]} Rae8 {[%emt 0:00:27]} 21. Kh2 {[%emt 0:00:27]} Bb6 {[%emt 0:02:47]} 22. Re2 {[%emt 0:02:00]} f5 {[%emt 0:01:58]} 23. Rae1 {[%emt 0:02:27]} d5 {[%emt 0:02:00]} 24. c4 {[%emt 0:01:11]} d4 {[%emt 0:03:38]} 25. Nd2 {[%emt 0:02:33]} a4 {[%emt 0:01:25]} 26. Rc1 {[%emt 0:02:20]} Nxd2 {[%emt 0:02:13]} 27. Rxd2 {[%emt 0:00:12]} Ba5 {[%emt 0:00:26]} 28. Rdd1 {[%emt 0:00:23]} Be4 {[%emt 0:00:35]} 29. Kg3 {[%emt 0:03:19]} Bxd3 {[%emt 0:03:14]} 30. Rxd3 {[%emt 0:00:04]} Re2 {[%emt 0:00:15]} 31. Ra3 {[%emt 0:01:08]} Rxb2 {[%emt 0:00:51]} 32. Rxa4 {[%emt 0:00:06]} Bb6 {[%emt 0:00:50]} 33. Ra3 {[%emt 0:00:22]} Ree2 {[%emt 0:00:10]} 34. Ra8+ {[%emt 0:01:15]} Kf7 {[%emt 0:00:12]} 35. Kh2 {[%emt 0:00:13]} Rxg2+ {[%emt 0:00:10]} 36. Kh1 {[%emt 0:00:02]} Rg3 {[%emt 0:00:18]} 37. a4 {[%emt 0:00:57]} Rxh3+ {[%emt 0:00:08]} 38. Bh2 {[%emt 0:00:07]} Rbxh2+ {[%emt 0:00:06]} 39. Kg1 {[%emt 0:00:11]} Rh1+ {[%emt 0:00:05]} 40. Kg2 {[%emt 0:00:00]} Rxc1 {[%emt 0:00:00]} 41. Kxh3 {[%emt 0:00:15]} Rxc4 {[%emt 0:00:27]} 42. a5 {[%emt 0:00:09]} Ra4 {[%emt 0:00:12]} 43. a6 {[%emt 0:00:19]} c4 {[%emt 0:00:10]} 44. Kg2 {[%emt 0:00:51]} c3 {[%emt 0:00:06]} 0-1

[Event "Polish Youth 1st League 2022"]
[Site "Lublin"]
[Date "2022.07.03"]
[Round "9.19"]
[White "Klim, Filip"]
[Black "Kania, Dominik"]
[Result "1/2-1/2"]
[ECO "B15"]
[WhiteElo "2015"]
[BlackElo "1872"]
[Annotator "NA RC"]
[PlyCount "84"]
[EventDate "2022.06.24"]
[EventType "team-tourn"]
[EventCountry "POL"]
[SourceTitle "playchess.com"]
[Source "ChessBase"]
[SourceQuality "1"]
[TimeControl "40/5400+30:1800+30"]

1. e4 {[%emt 0:00:03]} g6 {[%emt 0:00:06]} 2. d4 {[%emt 0:00:07]} Bg7 {[%emt 0:00:03]} 3. Nc3 {[%emt 0:00:10]} c6 {[%emt 0:00:07]} 4. f4 {[%emt 0:04:04]} d5 {[%emt 0:00:13]} 5. e5 {[%emt 0:00:21]} h5 {[%emt 0:01:02]} 6. Nf3 {[%emt 0:00:58]} Nh6 {[%emt 0:05:34]} 7. g3 {[%emt 0:10:25]} Bg4 {[%emt 0:01:25]} 8. Bg2 {[%emt 0:02:58]} Nf5 {[%emt 0:00:30]} 9. Qd3 {[%emt 0:12:14]} Bxf3 {[%emt 0:04:13]} 10. Bxf3 {[%emt 0:00:32]} Qb6 {[%emt 0:01:30]} 11. Be3 {[%emt 0:10:37]} Na6 {[%emt 0:05:12]} 12. O-O-O {[%emt 0:11:57]} e6 {[%emt 0:10:19]} 13. Bf2 {[%emt 0:03:01]} Bf8 {[%emt 0:06:48]} 14. h3 $11 {[%emt 0:02:39]} (14. Ne2 $14) 14... c5 {[%emt 0:11:02]} 15. g4 {[%emt 0:10:16]} Nxd4 {[%emt 0:01:21]} 16. Bxd4 {[%emt 0:07:58]} cxd4 {[%emt 0:00:53]} 17. Qb5+ {[%emt 0:04:26]} Qc6 {[%emt 0:05:58]} 18. Rxd4 {[%emt 0:02:56]} hxg4 {[%emt 0:00:39]} 19. hxg4 {[%emt 0:01:42]} Rxh1+ {[%emt 0:00:08]} 20. Bxh1 {[%emt 0:00:08]} Nc7 {[%emt 0:01:03]} 21. Qe2 {[%emt 0:03:23]} Bc5 {[%emt 0:01:49]} 22. Rd3 {[%emt 0:00:54]} O-O-O {[%emt 0:02:28]} 23. Rh3 {[%emt 0:01:41]} b5 {[%emt 0:07:31]} 24. a3 {[%emt 0:02:40]} a5 {[%emt 0:01:50]} 25. Na2 {[%emt 0:01:05]} b4 {[%emt 0:01:40]} 26. axb4 {[%emt 0:00:30]} axb4 {[%emt 0:00:04]} 27. Kb1 {[%emt 0:01:10]} Nb5 {[%emt 0:01:34]} 28. Qd3 {[%emt 0:00:21]} Rd7 {[%emt 0:04:54]} 29. Rh8+ {[%emt 0:00:22]} Kb7 {[%emt 0:04:31]} 30. Nc1 {[%emt 0:00:30]} Kb6 {[%emt 0:02:41]} 31. Nb3 {[%emt 0:00:53]} Ra7 {[%emt 0:02:59]} 32. Rb8+ {[%emt 0:00:30]} Rb7 {[%emt 0:00:09]} 33. Rxb7+ {[%emt 0:01:19]} Qxb7 {[%emt 0:00:05]} 34. Nxc5 {[%emt 0:00:12]} Kxc5 {[%emt 0:00:08]} 35. Qe3+ {[%emt 0:01:11]} d4 {[%emt 0:00:40]} 36. Qe4 {[%emt 0:02:17]} Qxe4 {[%emt 0:00:22]} 37. Bxe4 {[%emt 0:00:01]} Nc7 {[%emt 0:00:46]} 38. Kc1 {[%emt 0:00:36]} Nd5 {[%emt 0:01:16]} 39. f5 {[%emt 0:00:05]} exf5 {[%emt 0:01:51]} 40. gxf5 {[%emt 0:00:00]} gxf5 {[%emt 0:00:00]} 41. Bxf5 {[%emt 0:00:54]} Ne7 {[%emt 0:07:57]} 42. e6 {[%emt 0:07:42]} fxe6 {[%emt 0:04:45]} 1/2-1/2

[Event "Polish Youth 1st League 2022"]
[Site "Lublin"]
[Date "2022.07.03"]
[Round "9.20"]
[White "Lysakowski, Piotr"]
[Black "Bartodziej, Bartosz"]
[Result "0-1"]
[ECO "D86"]
[WhiteElo "1542"]
[BlackElo "1902"]
[Annotator "NA RC"]
[PlyCount "96"]
[EventDate "2022.06.24"]
[EventType "team-tourn"]
[EventCountry "POL"]
[SourceTitle "playchess.com"]
[Source "ChessBase"]
[SourceQuality "1"]
[TimeControl "40/5400+30:1800+30"]

1. d4 {[%emt 0:00:01]} Nf6 {[%emt 0:00:06]} 2. c4 {[%emt 0:00:03]} g6 {[%emt 0:00:11]} 3. Nc3 {[%emt 0:00:11]} d5 {[%emt 0:00:08]} 4. cxd5 {[%emt 0:00:11]} Nxd5 {[%emt 0:00:03]} 5. e4 {[%emt 0:00:08]} Nxc3 {[%emt 0:00:07]} 6. bxc3 {[%emt 0:00:09]} Bg7 {[%emt 0:00:11]} 7. Bc4 {[%emt 0:00:37]} c5 {[%emt 0:00:07]} 8. Ne2 {[%emt 0:00:10]} Nc6 {[%emt 0:00:08]} 9. Be3 {[%emt 0:00:18]} cxd4 {[%emt 0:00:40]} 10. cxd4 {[%emt 0:01:49]} Qa5+ {[%emt 0:00:04]} 11. Qd2 {[%emt 0:04:08]} O-O {[%emt 0:01:25]} 12. Rd1 {[%emt 0:08:50]} Qxd2+ {[%emt 0:05:39]} 13. Rxd2 {[%emt 0:02:04]} Bd7 {[%emt 0:03:48]} 14. O-O {[%emt 0:03:25]} Rac8 {[%emt 0:04:06]} 15. Rb1 {[%emt 0:07:24]} Na5 {[%emt 0:04:37]} 16. Bd3 {[%emt 0:01:34]} a6 {[%emt 0:27:07]} 17. Rb6 $11 {[%emt 0:16:12]} f5 {[%emt 0:15:00]} 18. e5 {[%emt 0:27:01]} f4 {[%emt 0:06:39]} 19. Bxf4 {[%emt 0:00:08]} Rxf4 {[%emt 0:00:08]} 20. Nxf4 {[%emt 0:00:08]} Rc1+ {[%emt 0:00:09]} 21. Bf1 {[%emt 0:00:05]} Bh6 {[%emt 0:13:48]} 22. Ne2 {[%emt 0:04:46]} Rxf1+ {[%emt 0:01:32]} 23. Kxf1 {[%emt 0:00:01]} Bxd2 {[%emt 0:00:09]} 24. Rb2 {[%emt 0:02:25]} Bh6 {[%emt 0:01:41]} 25. Nc3 {[%emt 0:03:15]} e6 {[%emt 0:04:02]} 26. Ne4 {[%emt 0:02:18]} Bc6 {[%emt 0:00:57]} 27. Nc5 {[%emt 0:02:02]} Kf7 {[%emt 0:00:49]} 28. Rc2 {[%emt 0:01:32]} Ke7 {[%emt 0:03:56]} 29. f3 {[%emt 0:02:03]} Be3 {[%emt 0:00:58]} 30. Nb3 {[%emt 0:03:47]} Nxb3 {[%emt 0:01:00]} 31. axb3 {[%emt 0:00:01]} Bxd4 {[%emt 0:00:09]} 32. f4 {[%emt 0:00:33]} a5 {[%emt 0:02:16]} 33. g3 {[%emt 0:01:47]} Bb6 {[%emt 0:00:53]} 34. Ke1 {[%emt 0:02:44]} Kd7 {[%emt 0:00:15]} 35. Kd2 {[%emt 0:00:59]} Bd5 {[%emt 0:00:29]} 36. Kc3 {[%emt 0:00:55]} Kc6 {[%emt 0:00:42]} 37. h4 {[%emt 0:01:14]} h5 {[%emt 0:00:47]} 38. Kd3+ {[%emt 0:02:02]} Bc5 {[%emt 0:00:05]} 39. Rb2 {[%emt 0:00:36]} Kb5 {[%emt 0:01:33]} 40. Kc3 {[%emt 0:00:00]} b6 {[%emt 0:00:00]} 41. Rh2 {[%emt 0:06:11]} Bb4+ {[%emt 0:00:54]} 42. Kb2 {[%emt 0:00:24]} Be1 {[%emt 0:02:15]} 43. Rh3 {[%emt 0:08:09]} Bf2 {[%emt 0:00:13]} 44. Kc3 {[%emt 0:00:35]} Bf3 {[%emt 0:01:30]} 45. Rh2 {[%emt 0:03:18]} Bxg3 {[%emt 0:00:41]} 46. Rh3 {[%emt 0:00:21]} Be1+ {[%emt 0:00:05]} 47. Kc2 {[%emt 0:00:22]} Bg4 {[%emt 0:00:03]} 48. Rh1 {[%emt 0:00:20]} Bg3 {[%emt 0:00:13]} 0-1

[Event "Polish Youth 1st League 2022"]
[Site "Lublin"]
[Date "2022.07.03"]
[Round "9.21"]
[White "Nawalaniec, Adam"]
[Black "Musial, Igor"]
[Result "1/2-1/2"]
[ECO "B25"]
[WhiteElo "1740"]
[BlackElo "1699"]
[Annotator "NA RC"]
[PlyCount "87"]
[EventDate "2022.06.24"]
[EventType "team-tourn"]
[EventCountry "POL"]
[SourceTitle "playchess.com"]
[Source "ChessBase"]
[SourceQuality "1"]
[TimeControl "40/5400+30:1800+30"]

1. e4 {[%emt 0:00:01]} c5 {[%emt 0:00:02]} 2. d3 {[%emt 0:00:15]} Nc6 {[%emt 0:00:13]} 3. g3 {[%emt 0:00:38]} g6 {[%emt 0:00:20]} 4. f4 {[%emt 0:01:50]} Bg7 {[%emt 0:01:42]} 5. Bg2 {[%emt 0:02:10]} d6 {[%emt 0:00:18]} 6. Nc3 {[%emt 0:06:50]} e5 {[%emt 0:01:22]} 7. Nf3 {[%emt 0:08:35]} Nge7 {[%emt 0:00:18]} 8. O-O {[%emt 0:00:41]} O-O {[%emt 0:00:18]} 9. Be3 {[%emt 0:02:30]} Nd4 {[%emt 0:03:55]} 10. Qd2 {[%emt 0:12:02]} Qc7 {[%emt 0:12:44]} 11. Rf2 {[%emt 0:02:10]} f5 {[%emt 0:07:19]} 12. Raf1 {[%emt 0:05:40]} Bd7 {[%emt 0:08:22]} 13. fxe5 {[%emt 0:15:22]} dxe5 {[%emt 0:00:14]} 14. Bh6 {[%emt 0:05:16]} Bc6 {[%emt 0:22:54]} 15. Bxg7 {[%emt 0:03:04]} Kxg7 {[%emt 0:00:32]} 16. exf5 {[%emt 0:16:23]} Nexf5 {[%emt 0:02:15]} 17. Nxd4 {[%emt 0:07:31]} exd4 {[%emt 0:07:24]} 18. Ne4 {[%emt 0:02:22]} Rae8 {[%emt 0:02:51]} 19. g4 {[%emt 0:05:12]} Ne3 {[%emt 0:15:55]} 20. Rxf8 {[%emt 0:00:07]} Rxf8 {[%emt 0:00:00]} 21. Rxf8 {[%emt 0:00:23]} Kxf8 {[%emt 0:00:05]} 22. Nxc5 {[%emt 0:00:07]} Qf7 {[%emt 0:06:32]} 23. Ne4 {[%emt 0:01:14]} Qxa2 {[%emt 0:05:18]} 24. Qb4+ {[%emt 0:00:17]} Kg8 {[%emt 0:00:16]} 25. Qxd4 {[%emt 0:01:23]} Nxg4 {[%emt 0:01:07]} 26. Qd8+ {[%emt 0:00:16]} Kg7 {[%emt 0:00:31]} 27. Qd4+ {[%emt 0:00:02]} Kg8 {[%emt 0:00:27]} 28. Qd8+ {[%emt 0:01:00]} Kg7 {[%emt 0:00:04]} 29. h3 {[%emt 0:00:54]} Bxe4 {[%emt 0:00:53]} 30. dxe4 {[%emt 0:00:25]} Ne5 {[%emt 0:00:42]} 31. Qd4 {[%emt 0:00:26]} Qa5 {[%emt 0:00:24]} 32. b4 {[%emt 0:00:13]} Qb6 {[%emt 0:00:23]} 33. Qxb6 {[%emt 0:00:47]} axb6 {[%emt 0:00:01]} 34. Kf2 {[%emt 0:00:17]} Kf6 {[%emt 0:00:20]} 35. Ke3 {[%emt 0:00:01]} Ke6 {[%emt 0:01:05]} 36. Kd4 {[%emt 0:00:21]} Kd6 {[%emt 0:00:18]} 37. b5 {[%emt 0:00:13]} g5 {[%emt 0:00:35]} 38. c3 {[%emt 0:00:28]} Ke6 {[%emt 0:00:32]} 39. Bf1 {[%emt 0:00:15]} Kd6 {[%emt 0:00:27]} 40. Be2 {[%emt 0:00:00]} h6 {[%emt 0:00:00]} 41. Bg4 {[%emt 0:00:35]} Ng6 {[%emt 0:13:00]} 42. Bc8 {[%emt 0:01:45]} h5 {[%emt 0:00:06]} 43. Bf5 {[%emt 0:08:55]} Ne5 {[%emt 0:00:48]} 44. Bc8 {[%emt 0:04:56]} 1/2-1/2

[Event "Polish Youth 1st League 2022"]
[Site "Lublin"]
[Date "2022.07.03"]
[Round "9.22"]
[White "Rozek, Michal"]
[Black "Kowalski, Witold"]
[Result "1/2-1/2"]
[ECO "B40"]
[WhiteElo "1533"]
[BlackElo "1613"]
[Annotator "NA RC"]
[PlyCount "74"]
[EventDate "2022.06.24"]
[EventType "team-tourn"]
[EventCountry "POL"]
[SourceTitle "playchess.com"]
[Source "ChessBase"]
[SourceQuality "1"]
[TimeControl "40/5400+30:1800+30"]

1. e4 {[%emt 0:00:04]} c5 {[%emt 0:00:05]} 2. Nf3 {[%emt 0:00:05]} e6 {[%emt 0:00:05]} 3. g3 {[%emt 0:00:07]} Nc6 {[%emt 0:00:07]} 4. Bg2 {[%emt 0:00:06]} Nf6 {[%emt 0:00:05]} 5. Qe2 {[%emt 0:00:18]} e5 {[%emt 0:00:34]} 6. O-O {[%emt 0:01:18]} Be7 {[%emt 0:00:12]} 7. c4 {[%emt 0:01:29]} d6 {[%emt 0:00:25]} 8. h3 {[%emt 0:03:47]} O-O {[%emt 0:01:26]} 9. d3 {[%emt 0:01:00]} h6 {[%emt 0:00:47]} 10. Nc3 {[%emt 0:01:27]} a6 {[%emt 0:03:47]} 11. a4 {[%emt 0:07:00]} Be6 {[%emt 0:05:55]} 12. Be3 {[%emt 0:06:02]} Qd7 {[%emt 0:04:04]} 13. Kh2 {[%emt 0:01:34]} Nd4 {[%emt 0:01:46]} 14. Bxd4 {[%emt 0:01:22]} cxd4 {[%emt 0:00:19]} 15. Nd5 {[%emt 0:03:43]} Bxd5 {[%emt 0:01:46]} 16. cxd5 {[%emt 0:01:18]} Rac8 {[%emt 0:03:04]} 17. Rfc1 {[%emt 0:19:34]} b5 {[%emt 0:08:22]} 18. Nd2 {[%emt 0:06:21]} bxa4 {[%emt 0:09:18]} 19. Nc4 {[%emt 0:00:50]} Qb5 {[%emt 0:02:56]} 20. h4 {[%emt 0:06:35]} Nd7 {[%emt 0:05:57]} 21. Bh3 {[%emt 0:01:20]} Rb8 {[%emt 0:12:52]} 22. Bxd7 {[%emt 0:01:48]} Qxd7 {[%emt 0:00:05]} 23. Qc2 {[%emt 0:05:14]} f5 {[%emt 0:23:42]} 24. f3 {[%emt 0:11:05]} fxe4 {[%emt 0:01:38]} 25. fxe4 {[%emt 0:01:39]} Rf3 {[%emt 0:04:06]} 26. Rf1 {[%emt 0:01:57]} Rbf8 {[%emt 0:03:54]} 27. Nd2 {[%emt 0:04:35]} R3f7 {[%emt 0:01:11]} 28. Rxf7 {[%emt 0:02:12]} Rxf7 {[%emt 0:00:10]} 29. Rf1 {[%emt 0:01:33]} Rxf1 {[%emt 0:02:02]} 30. Nxf1 {[%emt 0:00:07]} Qb7 {[%emt 0:04:06]} 31. Nd2 {[%emt 0:01:26]} Kh7 {[%emt 0:00:34]} 32. Nc4 {[%emt 0:01:07]} Qb4 {[%emt 0:00:30]} 33. Qf2 {[%emt 0:02:14]} Bf6 {[%emt 0:00:24]} 34. Qf5+ {[%emt 0:00:42]} Kg8 {[%emt 0:00:13]} 35. Qe6+ {[%emt 0:00:19]} Kh7 {[%emt 0:00:30]} 36. Qf5+ {[%emt 0:00:52]} Kg8 {[%emt 0:00:11]} 37. Qe6+ {[%emt 0:04:59]} Kh7 1/2-1/2

[Event "Polish Youth 1st League 2022"]
[Site "Lublin"]
[Date "2022.07.03"]
[Round "9.23"]
[White "Kudlak, Julia"]
[Black "Mroz, Lena"]
[Result "1-0"]
[ECO "B28"]
[WhiteElo "1654"]
[BlackElo "1719"]
[Annotator "NA RC"]
[PlyCount "86"]
[EventDate "2022.06.24"]
[EventType "team-tourn"]
[EventCountry "POL"]
[SourceTitle "playchess.com"]
[Source "ChessBase"]
[SourceQuality "1"]
[TimeControl "40/5400+30:1800+30"]

1. e4 {[%emt 0:00:04]} c5 {[%emt 0:00:04]} 2. Nf3 {[%emt 0:00:05]} a6 {[%emt 0:00:04]} 3. c4 {[%emt 0:03:16]} Nc6 {[%emt 0:00:16]} 4. d4 {[%emt 0:01:04]} cxd4 {[%emt 0:00:06]} 5. Nxd4 {[%emt 0:00:34]} e5 {[%emt 0:00:24]} 6. Nf5 {[%emt 0:01:39]} d6 {[%emt 0:00:21]} 7. Ne3 {[%emt 0:05:51]} g6 {[%emt 0:01:51]} 8. Nc3 {[%emt 0:01:04]} Bg7 {[%emt 0:02:41]} 9. Be2 {[%emt 0:05:55]} Nge7 {[%emt 0:02:50]} 10. g4 {[%emt 0:04:36]} h6 {[%emt 0:11:41]} 11. Ned5 {[%emt 0:05:06]} Nxd5 {[%emt 0:15:05]} 12. Nxd5 {[%emt 0:01:43]} Be6 {[%emt 0:02:42]} 13. Be3 {[%emt 0:02:56]} O-O {[%emt 0:03:54]} 14. Qd2 {[%emt 0:03:31]} Kh7 {[%emt 0:01:56]} 15. h4 {[%emt 0:05:56]} Bxd5 {[%emt 0:15:37]} 16. cxd5 {[%emt 0:01:21]} Nd4 {[%emt 0:00:47]} 17. Bxd4 {[%emt 0:02:51]} exd4 {[%emt 0:00:06]} 18. Bd3 {[%emt 0:01:22]} Kg8 {[%emt 0:01:34]} 19. O-O-O {[%emt 0:04:49]} a5 {[%emt 0:11:22]} 20. Kb1 {[%emt 0:01:20]} a4 {[%emt 0:00:39]} 21. f4 {[%emt 0:02:47]} a3 {[%emt 0:01:43]} 22. b3 {[%emt 0:02:58]} Qe7 {[%emt 0:09:37]} 23. Rde1 {[%emt 0:05:41]} Rfc8 {[%emt 0:06:09]} 24. g5 {[%emt 0:02:08]} h5 {[%emt 0:00:12]} 25. Re2 {[%emt 0:08:25]} Qd7 {[%emt 0:06:38]} 26. Rhe1 {[%emt 0:03:36]} Rc3 {[%emt 0:01:40]} 27. e5 {[%emt 0:04:06]} dxe5 {[%emt 0:02:08]} 28. fxe5 {[%emt 0:01:23]} Qxd5 {[%emt 0:01:39]} 29. e6 {[%emt 0:00:56]} fxe6 {[%emt 0:00:31]} 30. Rxe6 {[%emt 0:00:39]} Rf8 {[%emt 0:00:33]} 31. Rxg6 {[%emt 0:03:58]} Qf3 {[%emt 0:00:17]} 32. Bc2 {[%emt 0:06:40]} Re3 {[%emt 0:00:20]} 33. Rxg7+ {[%emt 0:02:39]} Kxg7 {[%emt 0:00:07]} 34. Qxd4+ {[%emt 0:00:06]} Kg8 {[%emt 0:00:58]} 35. Rxe3 {[%emt 0:00:49]} Qf1+ {[%emt 0:00:47]} 36. Bd1 {[%emt 0:01:59]} Qg2 {[%emt 0:00:30]} 37. Re7 {[%emt 0:00:56]} Rf7 {[%emt 0:00:14]} 38. Re8+ {[%emt 0:01:21]} Rf8 {[%emt 0:00:09]} 39. Rxf8+ {[%emt 0:00:18]} Kxf8 {[%emt 0:00:03]} 40. Qf6+ {[%emt 0:00:00]} Ke8 {[%emt 0:00:00]} 41. Bxh5+ {[%emt 0:02:34]} Kd7 {[%emt 0:00:54]} 42. Qd4+ {[%emt 0:01:55]} Ke6 {[%emt 0:03:13]} 43. Qg4+ {[%emt 0:00:33]} Kd5 1-0

[Event "Polish Youth 1st League 2022"]
[Site "Lublin"]
[Date "2022.07.03"]
[Round "9.24"]
[White "Lajdamik, Kinga"]
[Black "Dzierzgowska, Jagoda"]
[Result "1-0"]
[ECO "C15"]
[WhiteElo "1308"]
[BlackElo "1267"]
[Annotator "NA RC"]
[PlyCount "89"]
[EventDate "2022.06.24"]
[EventType "team-tourn"]
[EventCountry "POL"]
[SourceTitle "playchess.com"]
[Source "ChessBase"]
[SourceQuality "1"]
[TimeControl "40/5400+30:1800+30"]

1. e4 {[%emt 0:00:02]} e6 {[%emt 0:00:04]} 2. d4 {[%emt 0:00:04]} d5 {[%emt 0:00:05]} 3. Nc3 {[%emt 0:00:04]} Bb4 {[%emt 0:00:15]} 4. exd5 {[%emt 0:00:10]} exd5 {[%emt 0:00:05]} 5. Bd3 {[%emt 0:00:05]} c6 {[%emt 0:09:23]} 6. Nf3 {[%emt 0:00:42]} Bg4 {[%emt 0:00:35]} 7. O-O {[%emt 0:01:58]} Ne7 {[%emt 0:09:26]} 8. Be3 {[%emt 0:02:52]} O-O {[%emt 0:02:47]} 9. Bxh7+ {[%emt 0:01:05]} Kh8 {[%emt 0:20:49]} 10. Bd3 {[%emt 0:00:31]} Nd7 {[%emt 0:13:49]} 11. Be2 {[%emt 0:14:52]} Nf5 {[%emt 0:13:22]} 12. Bf4 {[%emt 0:06:16]} Be7 {[%emt 0:09:54]} 13. h3 {[%emt 0:05:11]} Bxf3 {[%emt 0:00:37]} 14. Bxf3 {[%emt 0:00:12]} Bf6 {[%emt 0:06:11]} 15. Ne2 {[%emt 0:01:47]} Nh4 {[%emt 0:02:36]} 16. Bh5 {[%emt 0:05:28]} Bg5 {[%emt 0:02:19]} 17. Bd6 {[%emt 0:07:29]} Be7 {[%emt 0:00:24]} 18. Bxe7 {[%emt 0:03:15]} Qxe7 {[%emt 0:00:07]} 19. Ng3 {[%emt 0:04:11]} Nf6 {[%emt 0:02:19]} 20. Re1 {[%emt 0:07:32]} Qc7 {[%emt 0:01:29]} 21. Be2 {[%emt 0:01:37]} Rae8 {[%emt 0:01:06]} 22. Qd2 {[%emt 0:01:14]} Kg8 {[%emt 0:01:24]} 23. Bd3 {[%emt 0:04:06]} Nh7 {[%emt 0:01:47]} 24. Rf1 {[%emt 0:03:50]} Re7 {[%emt 0:00:32]} 25. Bxh7+ {[%emt 0:02:17]} Kxh7 {[%emt 0:00:12]} 26. Qg5 {[%emt 0:00:07]} Ng6 {[%emt 0:00:25]} 27. Nf5 {[%emt 0:01:38]} Re6 {[%emt 0:00:54]} 28. Rae1 {[%emt 0:01:41]} Rfe8 {[%emt 0:00:14]} 29. Rxe6 {[%emt 0:00:21]} Rxe6 {[%emt 0:00:10]} 30. g3 {[%emt 0:00:44]} Re8 31. h4 {[%emt 0:02:09]} Qd8 {[%emt 0:01:09]} 32. Qg4 {[%emt 0:02:20]} Qf6 {[%emt 0:00:23]} 33. h5 {[%emt 0:00:37]} Ne7 {[%emt 0:00:34]} 34. Re1 {[%emt 0:00:28]} g6 {[%emt 0:00:44]} 35. hxg6+ {[%emt 0:01:19]} fxg6 {[%emt 0:00:09]} 36. Nh4 {[%emt 0:01:30]} Rg8 {[%emt 0:01:04]} 37. Re6 {[%emt 0:01:56]} Qf7 {[%emt 0:00:42]} 38. Nf3 {[%emt 0:00:36]} Kg7 {[%emt 0:00:29]} 39. Ne5 {[%emt 0:00:27]} Qf5 {[%emt 0:00:18]} 40. Rxe7+ {[%emt 0:00:00]} Kf6 {[%emt 0:00:00]} 41. Rf7+ {[%emt 0:00:45]} Ke6 {[%emt 0:01:16]} 42. Rxf5 {[%emt 0:00:13]} gxf5 {[%emt 0:00:39]} 43. Qxg8+ {[%emt 0:00:07]} Ke7 {[%emt 0:00:23]} 44. Qf7+ {[%emt 0:00:06]} Kd6 {[%emt 0:00:19]} 45. Qd7# {[%emt 0:00:17]} 1-0